bitfinex-derivatives/quotes_ETHF0:USTF0_20251001
["timestamp","ask_amount","ask_price","bid_price","bid_amount"]
[1759289882534,1.22293,4147.0,4146.9,1.20264]
[1759289883723,0.789,4147.0,4146.7,1.51797703]
[1759289883924,0.43397,4146.6,4146.5,0.00172912]
[1759289884226,1.22297,4146.6,4146.5,0.54082912]
[1759289884425,1.22297,4146.6,4146.5,0.00172912]
[1759289884426,1.46897,4146.6,4146.5,0.00172912]
[1759289889434,1.46897,4146.6,4146.5,0.54082912]
[1759289890136,1.46897,4146.6,4146.5,0.00172912]
[1759289891640,6.46897,4146.6,4146.5,0.00172912]
[1759289892142,47.26897,4146.6,4146.5,0.00172912]
[1759289892538,47.26897,4146.6,4145.5,0.1262]
[1759289892539,0.2184,4145.5,4145.2,0.5391]
[1759289892845,0.2271,4145.3,4145.2,1.20282]
[1759289893541,0.22965288,4145.3,4145.2,1.20457618]
[1759289895846,0.00068869,4145.3,4145.2,6.20457618]
[1759289896545,0.3435,4146.4,4146.2,0.43401]
[1759289896739,0.789,4146.4,4146.3,0.5592]
[1759289896938,0.789,4146.4,4146.0,1.53412112]
[1759289896939,0.789,4146.1,4146.0,1.53412112]
[1759289897241,0.4455,4146.1,4146.0,1.76372112]
[1759289897749,0.22949968,4146.1,4146.0,1.76372112]
[1759289900247,0.22949968,4146.1,4146.0,0.8949]
[1759289902248,0.22949968,4146.1,4146.0,1.32894]
[1759289904051,0.78769968,4146.1,4146.0,1.32894]
[1759289905152,0.44789968,4146.1,4146.0,1.32894]
[1759289906945,1.22172968,4146.1,4146.0,1.32894]
[1759289907145,1.20025,4145.9,4145.8,0.2283]
[1759289907344,0.7662,4145.9,4145.8,1.22046]
[1759289907641,0.4264,4145.9,4145.8,1.22046]
[1759289907954,0.4264,4145.9,4145.5,1.21142]
[1759289907955,0.21759968,4146.1,4146.0,1.35154]
[1759289908151,0.46259968,4146.1,4146.0,1.35154]
[1759289908453,0.89662968,4146.1,4146.0,1.35154]
[1759289909252,1.44762968,4146.1,4146.0,1.35154]
[1759289910152,1.44762968,4146.1,4146.0,0.9175]
[1759289910354,1.44762968,4146.1,4146.0,1.22044]
[1759289910551,1.01359968,4146.1,4146.0,1.22044]
[1759289910851,1.01359968,4146.1,4146.0,1.35154]
[1759289912255,1.44762968,4146.1,4146.0,1.35154]
[1759289912746,1.01359968,4146.1,4146.0,1.35154]
[1759289912950,0.43393,4147.1,4147.0,0.43392]
[1759289913258,0.2152,4147.1,4147.0,1.35142]
[1759289913456,0.4264,4147.1,4147.0,1.35142]
[1759289913857,0.4264,4147.1,4147.0,0.9175]
[1759289914048,0.76909438,4147.1,4147.0,0.9175]
[1759289917362,1.20016,4146.7,4146.6,0.5704]
[1759289917552,1.44516,4146.7,4146.6,0.7864]
[1759289918359,1.10536,4146.7,4146.6,0.7864]
[1759289918557,1.10536,4146.7,4146.6,1.22037]
[1759289918759,1.44516,4146.7,4146.6,0.5704]
[1759289918960,0.4602,4146.7,4146.6,1.22037]
[1759289919349,0.89416,4146.7,4146.6,1.22037]
[1759289923861,0.89416,4146.7,4146.6,0.7864]
[1759289924061,0.89416,4146.7,4146.6,1.22037]
[1759289924862,0.89416,4146.7,4146.6,0.7864]
[1759289925761,1.44516,4146.7,4146.6,0.7864]
[1759289931159,0.64923,4146.1,4146.0,0.5754]
[1759289931866,0.64923,4146.1,4146.0,0.9175]
[1759289932257,0.64923,4146.1,4146.0,1.35154]
[1759289932463,0.2152,4146.1,4146.0,1.35154]
[1759289932660,0.43402,4146.2,4146.1,0.87833]
[1759289932865,0.43402,4146.2,4146.1,0.7864]
[1759289932866,1.20022,4146.2,4146.1,0.7864]
[1759289933266,0.86042,4146.2,4146.1,1.22043]
[1759289934173,0.64922,4146.2,4146.1,1.22043]
[1759289934366,0.43402,4146.2,4146.1,1.22043]
[1759289935261,0.65782,4146.2,4146.1,0.7864]
[1759289936066,0.65782,4146.2,4146.1,1.22043]
[1759289936467,0.65782,4146.2,4146.1,0.7864]
[1759289936468,1.19572,4146.2,4146.1,0.7864]
[1759289937473,0.86572,4146.2,4146.1,0.7864]
[1759289937670,0.33,4146.1,4145.7,0.3306]
[1759289937875,0.98783,4146.1,4146.0,0.9114]
[1759289938170,0.43402,4146.3,4146.2,0.2212]
[1759289938474,0.43402,4146.3,4146.2,0.7815]
[1759289938774,0.43402,4146.3,4146.2,1.21552]
[1759289939266,0.65782,4146.3,4146.2,0.7815]
[1759289939864,0.65782,4146.3,4146.2,1.21552]
[1759289940275,0.2238,4146.3,4146.2,1.21552]
[1759289940770,0.43396,4146.7,4146.6,1.21547]
[1759289941666,0.2238,4146.7,4146.6,1.21547]
[1759289941873,0.33,4146.9,4146.8,0.4509]
[1759289941874,0.98774,4146.9,4146.8,0.4509]
[1759289942064,1.19564,4146.9,4146.8,0.7815]
[1759289943763,0.4317,4146.9,4146.8,0.7815]
[1759289944174,1.19564,4146.9,4146.8,0.7815]
[1759289944774,1.19564,4146.9,4146.8,0.3306]
[1759289945273,1.19564,4146.9,4146.8,0.99425]
[1759289945669,1.19564,4146.9,4146.8,1.21545]
[1759289946168,1.19564,4146.9,4146.8,0.7815]
[1759289947681,1.19564,4146.9,4146.8,1.21545]
[1759289948673,0.2238,4146.9,4146.8,1.21545]
[1759289948979,0.00289438,4147.1,4147.0,1.34533]
[1759289949173,0.24789438,4147.1,4147.0,1.34533]
[1759289949673,0.00289438,4147.1,4147.0,1.34533]
[1759289949880,0.68181438,4147.1,4147.0,1.34533]
[1759289951284,0.43681438,4147.1,4147.0,1.34533]
[1759289951476,0.68181438,4147.1,4147.0,1.34533]
[1759289952782,0.68181438,4147.1,4147.0,0.9114]
[1759289952983,0.43681438,4147.1,4147.0,0.9114]
[1759289953283,0.90561438,4147.1,4147.0,0.9114]
[1759289953983,0.66061438,4147.1,4147.0,0.9114]
[1759289954282,0.90561438,4147.1,4147.0,0.9114]
[1759289955977,1.23561438,4147.1,4147.0,0.9114]
[1759289956178,1.44351438,4147.1,4147.0,0.7815]
[1759289956378,1.44351438,4147.1,4147.0,0.9114]
[1759289957082,1.44351438,4147.1,4147.0,0.3306]
[1759289957480,1.44351438,4147.1,4147.0,0.5603]
[1759289963892,1.19851438,4147.1,4147.0,0.9092]
[1759289964079,1.11351438,4147.1,4147.0,0.9092]
[1759289964280,1.44671438,4147.1,4147.0,0.9092]
[1759289966688,1.44671438,4147.1,4147.0,0.3306]
[1759289966986,1.44671438,4147.1,4147.0,0.5583]
[1759289970390,1.44671438,4147.1,4147.0,0.7656]
[1759289974692,1.44671438,4147.1,4147.0,0.5583]
[1759289987795,1.44671438,4147.1,4146.5,0.1299]
[1759289987993,1.44671438,4147.1,4146.5,0.8827]
[1759289987994,1.19707,4146.6,4146.5,0.8827]
[1759289988292,1.44207,4146.6,4146.5,0.8827]
[1759289989299,1.10887,4146.6,4146.5,0.8827]
[1759289989495,0.67897,4146.6,4146.5,0.8827]
[1759289989800,0.43681438,4147.1,4147.0,0.8781]
[1759289989994,1.19991438,4147.1,4147.0,0.8781]
[1759289990187,1.19991438,4147.1,4147.0,0.7528]
[1759289998701,1.19991438,4147.1,4147.0,0.3178]
[1759289998902,1.19991438,4147.1,4147.0,0.5301]
[1759290001700,1.19991438,4147.1,4147.0,0.892]
[1759290004602,1.19497,4146.6,4146.5,0.5719]
[1759290004805,1.10467,4146.6,4146.5,1.00588]
[1759290005007,1.10467,4146.6,4146.5,1.32258]
[1759290005205,0.89657,4146.6,4146.5,0.8886]
[1759290006105,0.89657,4146.6,4146.5,1.32258]
[1759290007107,0.89657,4146.6,4146.5,0.8886]
[1759290007908,1.23187,4146.6,4146.5,1.32258]
[1759290008210,1.23187,4146.6,4146.5,0.8886]
[1759290008404,1.23187,4146.6,4146.5,1.32258]
[1759290008605,1.23187,4146.6,4146.5,0.8886]
[1759290009704,1.43997,4146.6,4146.5,0.8886]
[1759290009906,0.761,4146.2,4145.9,0.65135119]
[1759290010102,1.19504,4146.0,4145.9,0.529]
[1759290010303,1.19504,4146.0,4145.9,0.96305]
[1759290010804,0.761,4146.0,4145.9,0.96305]
[1759290010998,0.761,4146.0,4145.9,1.19275]
[1759290011198,1.70810514,4147.0,4146.9,0.43394]
[1759290011404,0.6707,4147.0,4146.9,0.87594]
[1759290011804,0.4257,4147.0,4146.9,1.19264]
[1759290012107,0.761,4147.0,4146.9,0.442]
[1759290012300,0.761,4147.0,4146.9,0.529]
[1759290012701,0.761,4147.0,4146.9,0.7587]
[1759290013512,0.761,4147.0,4146.9,0.529]
[1759290017414,0.761,4147.0,4146.9,0.3167]
[1759290017616,1.30953,4147.0,4146.9,0.43394]
[1759290017915,1.30953,4147.0,4146.9,0.75064]
[1759290018614,1.30953,4147.0,4146.9,0.3167]
[1759290018814,0.00289438,4147.1,4147.0,1.32483]
[1759290029013,0.65041438,4147.1,4147.0,1.32483]
[1759290032225,0.21649438,4147.1,4147.0,1.32483]
[1759290033429,0.65041438,4147.1,4147.0,1.32483]
[1759290035425,1.17461438,4147.1,4147.0,0.8909]
[1759290039625,1.17461438,4147.1,4147.0,0.7587]
[1759290040331,1.17461438,4147.1,4146.5,0.9001]
[1759290040332,1.17177,4146.6,4146.5,0.9001]
[1759290040525,1.10047,4146.6,4146.5,0.9001]
[1759290041025,0.3153,4146.8,4146.5,0.9001]
[1759290041026,0.00289438,4147.1,4147.0,0.1318]
[1759290041227,0.43681438,4147.1,4147.0,0.8997]
[1759290041534,0.43681438,4147.1,4147.0,0.7679]
[1759290041535,1.17461438,4147.1,4147.0,0.7679]
[1759290042033,1.41861438,4147.1,4147.0,0.7679]
[1759290042331,1.17461438,4147.1,4147.0,0.7679]
[1759290042532,1.41861438,4147.1,4147.0,0.7679]
[1759290044132,1.41861438,4147.1,4147.0,0.34]
[1759290044431,0.64757,4146.6,4146.5,0.9001]
[1759290044828,0.43397,4146.6,4146.5,1.33408]
[1759290046733,0.43397,4146.6,4146.5,0.9001]
[1759290046933,0.64757,4146.6,4146.5,0.9001]
[1759290049835,0.64757,4146.6,4146.5,1.33408]
[1759290050837,0.2136,4146.6,4146.5,1.33408]
[1759290051039,0.67796,4146.7,4146.6,0.86187]
[1759290051234,0.67796,4146.7,4146.6,1.20187]
[1759290052632,0.89156,4146.7,4146.6,1.20187]
[1759290052937,0.4576,4146.7,4146.6,1.20187]
[1759290054240,0.89156,4146.7,4146.6,1.20187]
[1759290055239,1.42686,4146.7,4146.6,1.20187]
[1759290057441,0.673,4146.7,4146.6,1.20187]
[1759290058842,1.10696,4146.7,4146.6,1.20187]
[1759290059245,1.42686,4146.7,4146.6,0.7679]
[1759290059936,0.9929,4146.7,4146.6,1.20187]
[1759290060141,1.42686,4146.7,4146.6,1.20187]
[1759290063941,0.00289438,4147.1,4146.6,0.7679]
[1759290064142,1.43571438,4147.1,4147.0,0.8764]
[1759290064349,1.18887,4146.7,4146.6,0.7418]
[1759290064645,0.435,4146.4,4146.3,0.9627]
[1759290064837,1.18889,4146.4,4146.3,0.9627]
[1759290065035,0.7549,4146.2,4146.1,0.75073]
[1759290065241,1.18892,4146.2,4146.1,0.96273]
[1759290065444,1.18892,4146.2,4146.1,1.17583]
[1759290066044,0.43407,4145.7,4145.6,1.29604045]
[1759290066348,1.18897,4145.7,4145.6,0.7418]
[1759290066550,0.2196,4145.7,4145.6,0.7418]
[1759290067049,0.2196,4145.7,4145.5,0.56029]
[1759290067050,0.43406,4145.8,4145.7,1.17587]
[1759290068446,1.18896,4145.8,4145.7,0.7418]
[1759290071946,40.8,4146.1,4146.0,0.1346]
[1759290072151,0.67802,4146.2,4146.1,1.17583]
[1759290072346,0.67802,4146.2,4146.1,0.7418]
[1759290072547,1.43292,4146.2,4146.1,0.7418]
[1759290073452,0.7549,4145.8,4145.7,1.17587]
[1759290074049,0.86906,4145.8,4145.7,0.7418]
[1759290074250,1.18896,4145.8,4145.7,0.7418]
[1759290074447,1.18896,4145.8,4145.7,1.17587]
[1759290074755,0.7549,4145.8,4145.7,1.17587]
[1759290078660,1.18896,4145.8,4145.7,1.17587]
[1759290079554,1.18896,4145.8,4145.2,1.17797618]
[1759290079555,0.7677,4145.3,4145.2,1.17797618]
[1759290079852,0.4293,4145.3,4145.2,1.17797618]
[1759290080644,0.86341,4145.3,4145.2,1.17797618]
[1759290080847,0.4293,4145.3,4145.2,1.17797618]
[1759290081054,0.2136,4145.3,4145.2,1.17797618]
[1759290081856,0.3384,4145.5,4145.4,0.4341]
[1759290082057,0.552,4145.5,4145.4,1.1762]
[1759290082259,0.244,4145.7,4145.6,0.43408]
[1759290082557,0.244,4145.7,4145.6,1.17618]
[1759290082760,0.4576,4145.7,4145.6,1.17618]
[1759290083663,0.89167,4145.7,4145.6,1.17618]
[1759290084662,0.4576,4145.7,4145.6,1.17618]
[1759290087159,0.89167,4145.7,4145.6,1.17618]
[1759290087755,0.4576,4145.7,4145.6,1.17618]
[1759290087959,0.43406,4145.8,4145.7,0.43407]
[1759290088155,0.76755,4145.9,4145.8,1.19246]
[1759290088363,1.21735,4145.9,4145.8,0.7584]
[1759290089063,1.21735,4145.9,4145.8,1.19246]
[1759290091660,1.21735,4145.9,4145.8,0.7584]
[1759290093568,0.65917,4145.7,4145.6,0.3356]
[1759290093776,1.21737,4145.7,4145.6,0.5502]
[1759290094269,1.21737,4145.7,4145.6,0.98428]
[1759290094774,1.21737,4145.7,4145.6,0.5502]
[1759290096670,1.46137,4145.7,4145.6,0.7584]
[1759290098169,1.46137,4145.7,4145.6,1.19248]
[1759290098976,1.46137,4145.7,4145.6,0.7584]
[1759290107579,1.46137,4145.7,4145.2,0.00175618]
[1759290107580,1.21741,4145.3,4145.2,0.42455618]
[1759290107883,1.46141,4145.3,4145.2,0.42455618]
[1759290108082,1.46141,4145.3,4145.2,0.76015618]
[1759290112480,2.33092886,4145.3,4145.2,0.33735618]
[1759290113182,2.33092886,4145.3,4145.2,0.55195618]
[1759290120188,2.33092886,4145.3,4145.2,0.78125618]
[1759290120482,1.46141,4145.3,4145.2,0.00175618]
[1759290120686,1.20776,4144.8,4144.7,0.3285]
[1759290120984,0.98819,4144.5,4144.4,0.5564]
[1759290121184,1.45179,4144.5,4144.4,0.7857]
[1759290121686,1.45179,4144.5,4144.4,0.78809623]
[1759290123485,1.45179,4144.5,4144.4,1.22229623]
[1759290123689,1.45179,4144.5,4144.4,0.78809623]
[1759290126292,1.45179,4144.5,4144.4,1.22229623]
[1759290128287,0.6926,4144.5,4144.4,1.22229623]
[1759290128489,1.0176,4144.5,4144.4,1.22229623]
[1759290128890,0.4636,4144.5,4144.4,2.09181509]
[1759290135796,1.45179,4144.5,4144.4,0.55879623]
[1759290135995,1.45179,4144.5,4143.7,0.99068]
[1759290135996,0.7736,4143.8,4143.7,0.99068]
[1759290136191,0.7736,4143.8,4143.7,0.5564]
[1759290136390,1.64311886,4143.8,4143.7,0.5564]
[1759290136892,1.64311886,4143.8,4143.7,0.3285]
[1759290137096,1.64556788,4143.8,4143.7,0.00308381]
[1759290137898,0.77604902,4143.8,4143.7,0.00308381]
[1759290138087,0.7736,4142.9,4142.5,0.8944]
[1759290138293,0.325,4142.8,4142.6,0.3285]
[1759290138597,0.7736,4142.7,4142.6,0.3285]
[1759290138989,0.4486,4142.1,4142.0,0.3594]
[1759290139190,0.7763,4142.1,4142.0,0.00217046]
[1759290139491,0.7763,4142.1,4142.0,0.43597046]
[1759290139692,1.0203,4142.1,4142.0,0.43597046]
[1759290140200,0.3277,4141.9,4141.0,0.1315]
[1759290140390,0.7679,4141.6,4141.5,0.4338]
[1759290140699,1.0119,4141.6,4141.5,0.2205]
[1759290140897,0.7679,4141.6,4141.5,0.8786]
[1759290141200,1.0119,4141.6,4141.5,0.88030565]
[1759290142696,0.7679,4142.0,4141.9,0.7532]
[1759290142896,1.0119,4142.0,4141.9,1.18767]
[1759290143200,0.2269,4142.6,4142.5,0.8931]
[1759290143501,0.4709,4142.6,4142.5,0.8931]
[1759290145502,0.2269,4142.6,4142.5,0.8931]
[1759290145801,0.3147,4142.9,4142.8,0.766]
[1759290145802,0.7661,4142.9,4142.8,0.766]
[1759290146102,1.0101,4142.9,4142.8,0.766]
[1759290146700,0.7661,4142.9,4142.8,0.766]
[1759290146901,1.0101,4142.9,4142.8,0.766]
[1759290147098,0.5416,4143.2,4143.1,0.4478]
[1759290147301,0.7856,4143.2,4143.1,1.20034]
[1759290147501,1.0101,4143.2,4143.1,1.20034]
[1759290147703,1.0101,4143.2,4143.1,0.766]
[1759290148004,0.7661,4143.2,4143.1,0.766]
[1759290148206,1.0101,4143.2,4143.1,0.766]
[1759290149405,0.7661,4143.2,4143.1,0.766]
[1759290149597,0.3147,4143.5,4143.0,0.1271]
[1759290149807,0.2269,4143.5,4143.4,1.20031]
[1759290150104,0.4709,4143.5,4143.4,1.20031]
[1759290152405,0.2269,4143.5,4143.4,1.20031]
[1759290152603,0.00244902,4143.8,4143.7,0.766]
[1759290153605,0.24644902,4143.8,4143.7,0.766]
[1759290158913,1.44681902,4143.8,4143.7,0.766]
[1759290159118,1.01254902,4143.8,4143.7,1.20028]
[1759290160214,0.22934902,4143.8,4143.7,1.20028]
[1759290161912,0.97831902,4143.8,4143.7,1.20028]
[1759290162219,0.54404902,4143.8,4143.7,1.20028]
[1759290162412,0.22934902,4143.8,4143.7,1.20028]
[1759290163418,0.22934902,4143.8,4143.7,0.766]
[1759290163606,0.54404902,4143.8,4143.7,0.766]
[1759290164011,0.76854902,4143.8,4143.7,0.766]
[1759290168922,1.20281902,4143.8,4143.7,0.766]
[1759290169123,1.20281902,4143.8,4143.7,1.20028]
[1759290170324,1.20281902,4143.8,4143.7,0.766]
[1759290171626,0.76854902,4143.8,4143.0,0.1271]
[1759290171818,0.00244902,4143.8,4143.3,0.4478]
[1759290172017,0.00244902,4143.8,4143.2,1.0079191]
[1759290172018,1.21988,4143.7,4143.6,1.20029]
[1759290172824,0.7856,4143.7,4143.6,1.20029]
[1759290173027,0.00244902,4143.8,4143.7,1.20028]
[1759290173620,0.66361902,4143.8,4143.7,1.20028]
[1759290175630,0.7458,4143.3,4143.2,0.87653]
[1759290175821,0.7549,4143.5,4143.4,0.43431]
[1759290176021,0.2171,4143.5,4143.4,1.20541]
[1759290176220,0.6514,4143.5,4143.4,1.20541]
[1759290177128,0.2171,4143.5,4143.4,1.20541]
[1759290178525,1.10591902,4143.8,4143.7,0.7711]
[1759290179327,1.42651902,4143.8,4143.7,0.7711]
[1759290182022,0.42764902,4143.8,4143.7,1.20538]
[1759290182224,0.67164902,4143.8,4143.7,1.20538]
[1759290182423,1.10591902,4143.8,4143.7,1.20538]
[1759290182619,1.42651902,4143.8,4143.7,0.7711]
[1759290183730,1.42651902,4143.8,4143.7,1.20538]
[1759290184230,1.42651902,4143.8,4143.7,0.7711]
[1759290185425,1.42651902,4143.8,4143.7,1.20538]
[1759290185629,1.42651902,4143.8,4143.7,0.7711]
[1759290186334,1.42651902,4143.8,4143.7,0.5473]
[1759290187433,1.18012,4143.3,4143.2,0.2184]
[1759290187632,1.42412,4143.3,4143.2,0.65273]
[1759290188026,1.42412,4143.3,4143.2,1.20543]
[1759290188633,1.42412,4143.3,4143.2,0.7711]
[1759290189138,1.42412,4143.3,4143.2,1.20543]
[1759290189640,1.42412,4143.3,4143.2,0.7711]
[1759290190342,1.42412,4143.3,4143.2,0.5473]
[1759290192543,1.42412,4143.3,4143.2,0.7711]
[1759290192735,1.18012,4143.3,4143.2,0.7711]
[1759290192936,1.42412,4143.3,4143.2,0.7711]
[1759290193437,0.67832,4143.3,4143.2,1.20543]
[1759290193830,0.67832,4143.3,4143.2,0.7711]
[1759290194031,0.43432,4143.3,4143.2,0.7711]
[1759290194629,0.43432,4143.3,4143.2,1.20543]
[1759290195332,0.89541,4143.5,4143.4,1.20541]
[1759290195529,0.3206,4143.7,4143.6,0.7711]
[1759290195530,0.5377,4143.7,4143.6,0.7711]
[1759290195742,0.89538,4143.7,4143.6,0.7711]
[1759290195939,0.00244902,4143.8,4143.7,1.20538]
[1759290196144,0.00244902,4143.8,4143.7,2.2132991]
[1759290197538,0.5632,4143.5,4142.6,0.76329]
[1759290197739,1.18018,4142.8,4142.7,0.7711]
[1759290198640,0.2171,4142.9,4142.8,0.7711]
[1759290198945,1.18016,4142.9,4142.8,0.7711]
[1759290200743,1.18016,4142.9,4142.8,0.5473]
[1759290201944,1.18896,4142.9,4142.8,0.7614]
[1759290203049,0.2169,4143.3,4143.2,0.2079]
[1759290203238,1.19083,4143.3,4143.2,0.7544]
[1759290203445,0.4378,4143.3,4143.2,0.7544]
[1759290203836,0.7565,4143.3,4143.2,0.7544]
[1759290206148,0.7565,4143.3,4143.2,0.3365]
[1759290206336,0.7565,4143.3,4143.2,0.5444]
[1759290209851,1.19082,4143.3,4143.2,0.5444]
[1759290210052,1.19082,4143.3,4143.2,0.97873]
[1759290212054,1.19082,4143.3,4143.2,0.5444]
[1759290214453,1.19082,4143.3,4143.2,0.97873]
[1759290216955,1.08585,4143.2,4142.6,1.50225383]
[1759290217262,0.7565,4142.7,4142.6,0.85229]
[1759290217562,0.4378,4142.7,4142.6,1.18879]
[1759290217859,0.2209,4142.7,4142.6,2.05916165]
[1759290218160,0.65528,4142.7,4142.6,1.18879]
[1759290218757,0.65528,4142.7,4142.2,0.5444]
[1759290218758,0.7565,4142.3,4142.2,0.5444]
[1759290218952,1.19092,4142.3,4142.2,0.7544]
[1759290220053,0.2209,4142.3,4142.0,0.21]
[1759290220254,1.19093,4142.2,4142.1,0.5444]
[1759290220456,1.19093,4142.2,4142.1,0.7544]
[1759290221463,1.43493,4142.2,4142.1,0.7544]
[1759290222166,1.43493,4142.2,4142.1,0.5444]
[1759290222560,1.43493,4142.2,4141.5,0.57301565]
[1759290222561,0.43449,4141.7,4141.5,0.57301565]
[1759290222862,0.65539,4141.7,4141.6,0.7544]
[1759290223065,0.3187,4141.6,4141.5,0.00170565]
[1759290223265,0.43459,4140.7,4140.3,0.98631081]
[1759290223566,0.7565,4140.2,4139.6,0.3365]
[1759290223864,0.4378,4139.7,4139.3,0.3365]
[1759290224068,0.2209,4139.2,4139.1,0.7544]
[1759290224262,0.2209,4139.2,4139.1,0.756801]
[1759290224460,1.00450401,4139.7,4139.6,0.7544]
[1759290225269,0.75950401,4139.7,4139.6,0.7544]
[1759290226778,0.75950401,4139.7,4139.6,0.5444]
[1759290226986,0.7565,4139.4,4139.3,1.41477165]
[1759290227282,0.7565,4139.4,4139.3,0.5444]
[1759290227871,0.7565,4139.4,4139.1,0.338901]
[1759290227872,0.7565,4139.2,4139.1,0.338901]
[1759290228181,1.62687165,4139.2,4139.1,0.002401]
[1759290228370,0.6828,4139.2,4139.1,1.41927265]
[1759290228570,0.7565,4139.2,4139.1,0.546801]
[1759290229082,0.7565,4139.2,4139.1,0.756801]
[1759290229277,0.2209,4139.2,4139.1,0.756801]
[1759290229877,0.7565,4139.2,4139.1,0.756801]
[1759290230276,0.65565,4139.3,4139.2,0.3365]
[1759290230473,0.2209,4139.3,4139.2,0.7544]
[1759290230674,0.5396,4139.6,4139.5,0.5448]
[1759290230874,0.5396,4139.6,4139.5,0.8813]
[1759290231180,0.2209,4139.6,4139.5,1.75167165]
[1759290231377,0.00300401,4139.7,4139.5,1.75167165]
[1759290231577,0.22390401,4139.7,4139.6,0.7544]
[1759290231779,0.75950401,4139.7,4139.6,0.5444]
[1759290233380,0.44080401,4139.7,4139.6,0.7544]
[1759290233587,0.22390401,4139.7,4139.6,0.7544]
[1759290235378,0.00300401,4139.7,4139.6,1.62477165]
[1759290239683,0.78300401,4139.7,4139.6,0.7544]
[1759290240183,1.21770401,4139.7,4139.6,0.7544]
[1759290240887,0.78300401,4139.7,4139.6,1.18911]
[1759290241179,0.43950401,4139.7,4139.6,1.18911]
[1759290241383,1.21770401,4139.7,4139.6,0.7544]
[1759290241783,0.00300401,4139.7,4139.6,2.05948165]
[1759290243490,0.00300401,4139.7,4139.6,1.18911]
[1759290243791,0.00300401,4139.7,4139.6,2.05948165]
[1759290245489,0.00300401,4139.7,4139.6,1.18911]
[1759290253692,0.00300401,4139.7,4139.6,6.18911]
[1759290254290,0.2169,4140.6,4140.5,0.99501]
[1759290254599,0.78,4141.0,4140.9,0.5246]
[1759290254794,1.21456,4141.0,4140.9,0.5246]
[1759290255397,1.21657925,4141.0,4140.9,0.5246]
[1759290257903,1.21657925,4141.0,4140.9,0.7417]
[1759290258207,1.21657925,4141.0,4140.9,1.17627]
[1759290259702,0.00201925,4141.0,4140.9,1.17627]
[1759290260209,0.87018,4140.8,4140.7,0.2249]
[1759290260406,1.18278,4140.8,4140.7,0.7768]
[1759290260710,0.4356,4140.8,4140.7,2.08176165]
[1759290261101,0.87018,4140.8,4140.7,2.08176165]
[1759290262009,1.18477925,4141.0,4140.9,0.7768]
[1759290262804,0.75021925,4141.0,4140.9,1.21137]
[1759290263108,1.18477925,4141.0,4140.9,1.21137]
[1759290263308,0.00201925,4141.0,4140.9,1.21137]
[1759290264507,0.22001925,4141.0,4140.9,1.21137]
[1759290264708,0.65457925,4141.0,4140.9,1.21137]
[1759290264907,1.20207925,4141.0,4140.9,1.21137]
[1759290265909,0.76751925,4141.0,4140.9,1.21137]
[1759290266303,0.00201925,4141.0,4140.9,1.21137]
[1759290266504,0.00201925,4141.0,4140.9,2.21950373]
[1759290273108,0.76751925,4141.0,4140.9,2.21950373]
[1759290273706,0.22001925,4141.0,4140.9,2.21950373]
[1759290274916,0.54951925,4141.0,4140.9,2.21950373]
[1759290276514,1.20207925,4141.0,4140.9,1.00007]
[1759290277716,1.20207925,4141.0,4140.9,1.20907]
[1759290277908,0.76751925,4141.0,4140.9,1.20907]
[1759290278111,0.87257925,4141.0,4140.9,1.20907]
[1759290278318,1.20207925,4141.0,4140.9,1.20907]
[1759290280122,1.20207925,4141.0,4140.9,0.7745]
[1759290280319,0.7655,4140.6,4140.5,2.00034373]
[1759290280521,0.218,4140.6,4140.5,2.00034373]
[1759290280820,0.5475,4140.6,4140.5,2.34334373]
[1759290281218,0.218,4140.6,4140.5,2.34334373]
[1759290281519,0.7655,4140.9,4140.8,0.85858]
[1759290281720,0.7655,4140.9,4140.8,1.20158]
[1759290282922,1.20007,4140.9,4140.8,1.20158]
[1759290284612,0.7655,4140.9,4140.8,1.20158]
[1759290286920,0.218,4140.9,4140.8,1.20158]
[1759290287121,0.00201925,4141.0,4140.9,1.20157]
[1759290291827,0.22001925,4141.0,4140.9,1.20157]
[1759290292125,0.54951925,4141.0,4140.9,1.20157]
[1759290292526,0.76751925,4141.0,4140.9,1.20157]
[1759290292727,1.20207925,4141.0,4140.9,0.99257]
[1759290292930,1.32787925,4141.0,4140.9,0.558]
[1759290293729,0.43801925,4141.0,4140.9,2.22470373]
[1759290294429,0.87257925,4141.0,4140.9,2.22470373]
[1759290294927,0.43458,4140.8,4140.7,0.332]
[1759290295120,0.88078,4140.8,4140.7,0.5606]
[1759290295325,0.4462,4140.6,4140.5,0.5606]
[1759290295522,0.7745,4140.6,4140.5,0.5606]
[1759290295724,1.2091,4140.6,4140.5,0.5606]
[1759290297332,1.2091,4140.6,4140.5,0.99521]
[1759290297831,1.2091,4140.6,4140.5,0.5606]
[1759290299434,1.2091,4140.6,4140.5,0.99521]
[1759290300236,1.2091,4140.6,4140.5,0.5606]
[1759290300440,1.2091,4140.6,4139.7,0.4347]
[1759290300441,0.7745,4139.8,4139.7,0.4347]
[1759290300731,0.7745,4139.8,4139.7,1.2193]
[1759290301036,1.20919,4139.8,4139.7,0.7846]
[1759290303137,1.20919,4139.8,4139.7,0.5606]
[1759290303547,0.4462,4139.5,4139.4,0.5606]
[1759290303835,0.7745,4139.5,4139.4,0.5606]
[1759290304030,1.20922,4139.5,4139.4,0.5606]
[1759290304236,1.20922,4139.5,4139.4,0.332]
[1759290304429,1.20922,4139.5,4139.2,0.5606]
[1759290304430,1.20925,4139.3,4139.2,0.5606]
[1759290305029,1.20925,4139.3,4139.1,0.334401]
[1759290305434,1.20925,4139.3,4139.2,0.332]
[1759290306635,0.2177,4139.6,4139.5,0.9175]
[1759290307539,0.7745,4139.6,4139.5,0.9175]
[1759290307938,0.4462,4139.6,4139.5,0.9175]